[Event "RUS-ch Rapid Men 2018"]
[Site "Sochi"]
[Date "2018.10.05"]
[Round "4"]
[White "Belyakov, Bogdan"]
[Black "Sakaev, Konstantin"]
[Result "1/2-1/2"]
[ECO "B22"]
[WhiteElo "2458"]
[BlackElo "2584"]
[Annotator "ChessBase"]
[PlyCount "70"]
[EventDate "2018.10.05"]
[EventType "swiss"]
[EventCountry "RUS"]
[SourceTitle "playchess.com"]
[Source "ChessBase"]
[SourceQuality "1"]
[TimeControl "900+10"]

1. e4 {[%emt 0:00:00]} c5 {[%emt 0:00:00]} 2. c3 {[%emt 0:00:00]} d5 {[%emt 0:00:00]} 3. exd5 {[%emt 0:00:00]} Qxd5 {[%emt 0:00:00]} 4. d4 {[%emt 0:00:00]} Nc6 {[%emt 0:00:10]} 5. Nf3 {[%emt 0:00:01]} Bf5 {[%emt 0:00:02]} 6. Be2 {[%emt 0:00:10]} cxd4 {[%emt 0:01:15]} 7. Nxd4 {[%emt 0:00:04]} O-O-O {[%emt 0:02:36]} 8. O-O {[%emt 0:02:54]} Nf6 {[%emt 0:00:07]} 9. Nxf5 {[%emt 0:00:55]} Qxf5 {[%emt 0:00:02]} 10. Qa4 {[%emt 0:00:02]} Qe4 {[%emt 0:01:04]} 11. Qxe4 {[%emt 0:00:31]} Nxe4 {[%emt 0:00:02]} 12. Bf3 {[%emt 0:00:07]} Nf6 {[%emt 0:00:10]} 13. Re1 {[%emt 0:01:38]} e6 {[%emt 0:00:11]} 14. Nd2 {[%emt 0:00:02]} Nd5 {[%emt 0:01:36]} 15. Nc4 {[%emt 0:00:07]} Be7 {[%emt 0:00:01]} 16. Kf1 {[%emt 0:00:18]} Bf6 {[%emt 0:00:45]} 17. a4 {[%emt 0:00:29]} Rd7 {[%emt 0:00:49]} 18. a5 {[%emt 0:00:07]} Rhd8 {[%emt 0:00:26]} 19. a6 {[%emt 0:00:02]} b6 {[%emt 0:01:41]} 20. Ne3 {[%emt 0:02:02]} Nce7 {[%emt 0:02:56]} 21. Nxd5 {[%emt 0:00:05]} Nxd5 {[%emt 0:00:03]} 22. Ra4 {[%emt 0:00:19]} Kb8 {[%emt 0:00:53]} 23. h4 {[%emt 0:02:21]} Be7 {[%emt 0:01:13]} 24. h5 {[%emt 0:00:13]} Rc7 {[%emt 0:01:19]} 25. g3 {[%emt 0:02:09]} h6 {[%emt 0:00:18]} 26. Rg4 {[%emt 0:00:34]} Bf6 {[%emt 0:00:38]} 27. Ra4 {[%emt 0:01:00]} Rc5 {[%emt 0:00:19]} 28. Rd1 {[%emt 0:00:23]} Kc7 {[%emt 0:00:38]} 29. c4 {[%emt 0:00:53]} b5 {[%emt 0:00:16]} 30. cxd5 {[%emt 0:00:51]} bxa4 {[%emt 0:00:02]} 31. Bf4+ {[%emt 0:00:39]} Kb6 {[%emt 0:00:01]} 32. Ra1 {[%emt 0:00:27]} Bxb2 {[%emt 0:00:14]} 33. Rxa4 {[%emt 0:00:01]} exd5 {[%emt 0:00:03]} 34. Rb4+ {[%emt 0:00:23]} Rb5 {[%emt 0:00:02]} 35. Bc7+ {[%emt 0:00:02]} Kxc7 {[%emt 0:00:07]} 1/2-1/2

[Event "RUS-ch Rapid Men 2018"]
[Site "Sochi"]
[Date "2018.10.05"]
[Round "4"]
[White "Tsoi, Dmitry"]
[Black "Shcherbakov, Ruslan"]
[Result "1/2-1/2"]
[ECO "A10"]
[WhiteElo "2429"]
[BlackElo "2516"]
[Annotator "RC"]
[PlyCount "156"]
[EventDate "2018.10.05"]
[EventType "swiss"]
[EventCountry "RUS"]
[SourceTitle "playchess.com"]
[Source "ChessBase"]
[SourceQuality "1"]
[TimeControl "900+10"]

1. c4 {[%emt 0:00:00]} b6 {[%emt 0:00:14]} 2. g3 {[%emt 0:00:00]} Bb7 {[%emt 0:00:02]} 3. Nf3 {[%emt 0:00:00]} g6 {[%emt 0:00:10]} 4. Bg2 {[%emt 0:00:00]} Bg7 {[%emt 0:00:01]} 5. Nc3 {[%emt 0:00:06]} Nf6 {[%emt 0:00:06]} 6. O-O {[%emt 0:00:05]} O-O {[%emt 0:00:02]} 7. d4 {[%emt 0:00:13]} Ne4 {[%emt 0:00:08]} 8. Nxe4 {[%emt 0:00:47]} Bxe4 {[%emt 0:00:02]} 9. Bg5 {[%emt 0:00:10]} h6 {[%emt 0:01:42]} 10. Be3 {[%emt 0:00:47]} d5 {[%emt 0:00:17]} 11. Qd2 {[%emt 0:00:16]} Kh7 {[%emt 0:00:17]} 12. Rac1 {[%emt 0:00:12]} Nc6 {[%emt 0:00:42]} 13. c5 {[%emt 0:00:47]} b5 {[%emt 0:01:06]} 14. Ne5 {[%emt 0:01:30]} Bxg2 {[%emt 0:00:38]} 15. Nxc6 {[%emt 0:01:29]} Qe8 {[%emt 0:00:05]} 16. Kxg2 {[%emt 0:00:40]} Qxc6 {[%emt 0:00:02]} 17. f4 {[%emt 0:02:32]} f5 {[%emt 0:00:09]} 18. h4 {[%emt 0:00:08]} Rf6 {[%emt 0:00:08]} 19. h5 {[%emt 0:01:17]} Re6 {[%emt 0:01:49]} 20. hxg6+ {[%emt 0:00:26]} Kxg6 {[%emt 0:00:02]} 21. Rh1 {[%emt 0:00:08]} h5 {[%emt 0:05:00]} 22. Qd3 {[%emt 0:00:45]} Rh8 {[%emt 0:00:23]} 23. Bf2 {[%emt 0:00:27]} Rf6 {[%emt 0:00:55]} 24. e3 {[%emt 0:00:27]} a6 {[%emt 0:00:10]} 25. Rh4 {[%emt 0:00:20]} Qe6 {[%emt 0:00:30]} 26. c6 {[%emt 0:00:46]} Qe4+ {[%emt 0:00:26]} 27. Qxe4 {[%emt 0:00:01]} dxe4 {[%emt 0:00:01]} 28. Be1 {[%emt 0:00:18]} Rd8 {[%emt 0:01:01]} 29. Bb4 {[%emt 0:00:03]} Rf7 {[%emt 0:00:37]} 30. Rh2 {[%emt 0:00:42]} e6 {[%emt 0:00:09]} 31. Kh3 {[%emt 0:00:04]} Rd5 {[%emt 0:00:48]} 32. Rhc2 {[%emt 0:00:13]} Bf6 {[%emt 0:00:07]} 33. Rc5 {[%emt 0:00:49]} Rd8 {[%emt 0:00:17]} 34. a3 {[%emt 0:00:07]} Rh7 {[%emt 0:00:16]} 35. Rg1 {[%emt 0:00:22]} Kf7 {[%emt 0:00:05]} 36. Rc2 {[%emt 0:00:23]} Rg8 {[%emt 0:00:05]} 37. Rcg2 {[%emt 0:01:44]} Rg4 {[%emt 0:00:04]} 38. Be1 {[%emt 0:00:01]} Be7 {[%emt 0:01:14]} 39. Kh2 {[%emt 0:00:16]} h4 {[%emt 0:00:28]} 40. gxh4 {[%emt 0:00:05]} Bxh4 {[%emt 0:00:03]} 41. Rxg4 {[%emt 0:00:03]} Bxe1+ {[%emt 0:00:06]} 42. Kg2 {[%emt 0:00:01]} fxg4 {[%emt 0:00:02]} 43. Rxe1 {[%emt 0:00:01]} Rh3 {[%emt 0:00:05]} 44. Rh1 {[%emt 0:00:40]} Rxe3 {[%emt 0:00:22]} 45. Rh7+ {[%emt 0:00:01]} Kf6 {[%emt 0:00:08]} 46. Rxc7 {[%emt 0:00:04]} Rb3 {[%emt 0:00:07]} 47. Rh7 {[%emt 0:01:41]} Rxb2+ {[%emt 0:00:06]} 48. Kg3 {[%emt 0:00:00]} Rc2 {[%emt 0:00:04]} 49. c7 {[%emt 0:00:27]} e3 {[%emt 0:00:04]} 50. Rh6+ {[%emt 0:00:43]} Ke7 {[%emt 0:00:39]} 51. Kxg4 {[%emt 0:00:01]} e2 {[%emt 0:00:06]} 52. Rh1 {[%emt 0:00:12]} Rxc7 {[%emt 0:00:06]} 53. Re1 {[%emt 0:00:15]} Rc2 {[%emt 0:00:08]} 54. f5 {[%emt 0:00:09]} Kf6 {[%emt 0:00:09]} 55. fxe6 {[%emt 0:00:12]} Kxe6 {[%emt 0:00:09]} 56. Kf3 {[%emt 0:00:10]} Rc3+ {[%emt 0:00:09]} 57. Ke4 {[%emt 0:00:04]} Rxa3 {[%emt 0:00:06]} 58. Rxe2 {[%emt 0:00:01]} Ra1 {[%emt 0:00:28]} 59. Rh2 {[%emt 0:00:09]} Re1+ {[%emt 0:00:04]} 60. Kd3 {[%emt 0:00:00]} Kd5 {[%emt 0:00:03]} 61. Rh5+ {[%emt 0:00:05]} Kd6 {[%emt 0:00:05]} 62. Rh6+ {[%emt 0:00:08]} Re6 {[%emt 0:00:02]} 63. Rh1 {[%emt 0:00:23]} Rg6 {[%emt 0:00:20]} 64. Ke4 {[%emt 0:00:22]} a5 {[%emt 0:00:33]} 65. Ra1 {[%emt 0:00:18]} a4 {[%emt 0:00:06]} 66. Rb1 {[%emt 0:00:01]} Kc6 {[%emt 0:00:07]} 67. Rc1+ {[%emt 0:00:19]} Kb6 {[%emt 0:00:03]} 68. d5 {[%emt 0:00:01]} a3 {[%emt 0:00:11]} 69. Kd3 {[%emt 0:00:12]} Rg3+ {[%emt 0:00:19]} 70. Kc2 {[%emt 0:00:03]} Kc5 {[%emt 0:00:14]} 71. Rd1 {[%emt 0:00:04]} Kd6 {[%emt 0:00:06]} 72. Rd4 {[%emt 0:00:09]} Kc5 {[%emt 0:00:21]} 73. Rd1 {[%emt 0:00:01]} Kd6 {[%emt 0:00:17]} 74. Rd4 {[%emt 0:00:02]} Rh3 {[%emt 0:00:07]} 75. Kb1 {[%emt 0:00:25]} Rh2 {[%emt 0:00:16]} 76. Ka1 {[%emt 0:00:03]} Rb2 {[%emt 0:00:12]} 77. Rd3 {[%emt 0:00:16]} b4 {[%emt 0:00:31]} 78. Rxa3 {[%emt 0:00:02]} bxa3 {[%emt 0:00:03]} 1/2-1/2

[Event "RUS-ch Rapid Men 2018"]
[Site "Sochi"]
[Date "2018.10.05"]
[Round "4"]
[White "Vastrukhin, Oleg"]
[Black "Jary, Sergey"]
[Result "0-1"]
[ECO "A06"]
[WhiteElo "2413"]
[BlackElo "2286"]
[Annotator "RC"]
[PlyCount "72"]
[EventDate "2018.10.05"]
[EventType "swiss"]
[EventCountry "RUS"]
[SourceTitle "playchess.com"]
[Source "ChessBase"]
[SourceQuality "1"]
[TimeControl "900+10"]

1. g3 {[%emt 0:00:00]} d5 {[%emt 0:00:00]} 2. Nf3 {[%emt 0:00:00]} g6 {[%emt 0:00:00]} 3. Bg2 {[%emt 0:00:00]} Bg7 {[%emt 0:00:00]} 4. d4 {[%emt 0:00:00]} Nf6 {[%emt 0:00:01]} 5. O-O {[%emt 0:00:02]} O-O {[%emt 0:00:00]} 6. Nbd2 {[%emt 0:00:01]} Ne4 {[%emt 0:00:12]} 7. e3 {[%emt 0:00:22]} f5 {[%emt 0:00:07]} 8. c4 {[%emt 0:00:34]} c6 {[%emt 0:00:12]} 9. Qb3 {[%emt 0:00:38]} Qb6 {[%emt 0:00:13]} 10. Ne1 {[%emt 0:00:53]} Qxb3 {[%emt 0:00:32]} 11. axb3 {[%emt 0:00:02]} e5 {[%emt 0:00:05]} 12. dxe5 {[%emt 0:01:24]} Bxe5 {[%emt 0:00:01]} 13. Nd3 {[%emt 0:00:24]} Bg7 {[%emt 0:00:47]} 14. cxd5 {[%emt 0:00:11]} cxd5 {[%emt 0:00:01]} 15. Nf4 {[%emt 0:00:03]} Rd8 {[%emt 0:00:09]} 16. Rd1 {[%emt 0:00:24]} Nc6 {[%emt 0:00:12]} 17. Nxe4 {[%emt 0:02:05]} dxe4 {[%emt 0:00:09]} 18. Rxd8+ {[%emt 0:00:01]} Nxd8 {[%emt 0:00:01]} 19. Bf1 {[%emt 0:00:28]} Nc6 {[%emt 0:01:11]} 20. Bc4+ {[%emt 0:02:35]} Kf8 {[%emt 0:00:18]} 21. h4 {[%emt 0:00:05]} Be5 {[%emt 0:00:11]} 22. Kf1 {[%emt 0:00:41]} Bd7 {[%emt 0:00:19]} 23. Ra2 {[%emt 0:01:15]} Nb4 {[%emt 0:00:37]} 24. Ra5 {[%emt 0:00:07]} Nc6 {[%emt 0:00:33]} 25. Rb5 {[%emt 0:01:15]} b6 {[%emt 0:00:37]} 26. Rd5 {[%emt 0:00:16]} Ke7 {[%emt 0:00:51]} 27. Bb5 {[%emt 0:00:35]} Bxf4 28. gxf4 {[%emt 0:00:13]} Rc8 {[%emt 0:00:20]} 29. Bd2 {[%emt 0:01:04]} a5 {[%emt 0:01:05]} 30. Kg2 {[%emt 0:01:27]} Be6 {[%emt 0:00:12]} 31. Bxc6 {[%emt 0:00:11]} Bxd5 {[%emt 0:00:04]} 32. Bxd5 {[%emt 0:00:02]} Rd8 {[%emt 0:00:01]} 33. Bxa5 {[%emt 0:00:37]} bxa5 {[%emt 0:00:08]} 34. Bc4 {[%emt 0:00:09]} Rd2 {[%emt 0:00:02]} 35. Bg8 {[%emt 0:00:02]} h6 {[%emt 0:00:01]} 36. b4 {[%emt 0:00:31]} a4 {[%emt 0:00:15]} 0-1

[Event "RUS-ch Rapid Men 2018"]
[Site "Sochi"]
[Date "2018.10.05"]
[Round "4"]
[White "Dzhumagaliev, Yan"]
[Black "Kretov, Evgenij"]
[Result "1-0"]
[ECO "A46"]
[WhiteElo "2410"]
[BlackElo "2219"]
[Annotator "NA RC"]
[PlyCount "153"]
[EventDate "2018.10.05"]
[EventType "swiss"]
[EventCountry "RUS"]
[SourceTitle "playchess.com"]
[Source "ChessBase"]
[SourceQuality "1"]
[TimeControl "900+10"]

1. d4 {[%emt 0:00:00]} Nf6 {[%emt 0:00:00]} 2. Nf3 {[%emt 0:00:00]} e6 {[%emt 0:00:00]} 3. c4 {[%emt 0:00:00]} d5 {[%emt 0:00:01]} 4. g3 {[%emt 0:00:00]} Bb4+ {[%emt 0:00:02]} 5. Bd2 {[%emt 0:00:06]} Be7 {[%emt 0:00:02]} 6. Bg2 {[%emt 0:00:08]} O-O {[%emt 0:00:03]} 7. O-O {[%emt 0:00:17]} c6 {[%emt 0:00:04]} 8. Qc2 {[%emt 0:00:05]} Nbd7 {[%emt 0:00:06]} 9. b3 {[%emt 0:00:19]} b6 {[%emt 0:00:03]} 10. a4 {[%emt 0:00:01]} a5 {[%emt 0:00:24]} 11. Rd1 {[%emt 0:00:18]} Ba6 {[%emt 0:00:05]} 12. Bf4 {[%emt 0:01:12]} Rc8 {[%emt 0:00:33]} 13. Nc3 {[%emt 0:02:10]} Nh5 {[%emt 0:01:37]} 14. Bc1 {[%emt 0:00:30]} f5 {[%emt 0:00:11]} 15. e3 {[%emt 0:01:15]} Nhf6 {[%emt 0:02:21]} 16. Ng5 {[%emt 0:00:02]} Qe8 {[%emt 0:02:14]} 17. Nxe6 {[%emt 0:00:02]} Rf7 {[%emt 0:00:02]} 18. Ng5 {[%emt 0:00:03]} Rf8 {[%emt 0:00:05]} 19. Qxf5 {[%emt 0:00:09]} Bb4 {[%emt 0:00:35]} 20. Bb2 {[%emt 0:00:38]} h6 {[%emt 0:02:27]} 21. Qe6+ {[%emt 0:01:46]} Qxe6 {[%emt 0:01:32]} 22. Nxe6 {[%emt 0:00:01]} Rfe8 {[%emt 0:00:02]} 23. Nf4 {[%emt 0:00:26]} dxc4 {[%emt 0:00:12]} 24. bxc4 {[%emt 0:02:40]} Bxc4 {[%emt 0:00:17]} 25. d5 {[%emt 0:00:28]} Bxc3 {[%emt 0:03:22]} 26. Bxc3 {[%emt 0:00:01]} cxd5 {[%emt 0:00:08]} 27. Bxf6 {[%emt 0:00:25]} Nxf6 {[%emt 0:00:02]} 28. Rab1 {[%emt 0:00:01]} Ne4 {[%emt 0:01:03]} 29. Rxb6 {[%emt 0:02:35]} Nc3 {[%emt 0:00:10]} 30. Ra1 {[%emt 0:01:05]} Rb8 {[%emt 0:00:57]} 31. Rd6 {[%emt 0:00:06]} Red8 {[%emt 0:00:13]} 32. Rxd8+ {[%emt 0:00:35]} Rxd8 {[%emt 0:00:01]} 33. Rc1 {[%emt 0:01:01]} d4 {[%emt 0:01:05]} 34. exd4 {[%emt 0:00:11]} Rxd4 {[%emt 0:00:01]} 35. Bf3 {[%emt 0:00:39]} Ne4 {[%emt 0:00:20]} 36. Re1 {[%emt 0:00:29]} Nd2 {[%emt 0:00:06]} 37. Re8+ {[%emt 0:00:08]} Kf7 {[%emt 0:00:02]} 38. Bh5+ {[%emt 0:00:01]} Kf6 {[%emt 0:00:02]} 39. h4 {[%emt 0:00:23]} g5 {[%emt 0:00:17]} 40. hxg5+ {[%emt 0:00:01]} hxg5 41. Ng2 {[%emt 0:00:18]} Be6 {[%emt 0:00:15]} 42. Bd1 {[%emt 0:00:48]} Ne4 {[%emt 0:00:15]} 43. Ne3 {[%emt 0:00:01]} Nc3 {[%emt 0:00:07]} 44. Bc2 {[%emt 0:00:14]} Nxa4 {[%emt 0:00:06]} 45. Ra8 {[%emt 0:00:09]} Nb6 {[%emt 0:00:13]} 46. Rxa5 {[%emt 0:00:03]} Nc4 {[%emt 0:00:01]} 47. Nxc4 {[%emt 0:00:15]} Rxc4 {[%emt 0:00:01]} 48. Bd3 {[%emt 0:00:16]} Rd4 {[%emt 0:00:01]} 49. Be2 {[%emt 0:00:06]} Rd2 {[%emt 0:00:25]} 50. Bf3 {[%emt 0:00:22]} Rb2 {[%emt 0:00:15]} 51. Kg2 {[%emt 0:00:06]} Rd2 {[%emt 0:00:03]} 52. Ra6 {[%emt 0:00:06]} Ke5 {[%emt 0:00:03]} 53. Ra5+ {[%emt 0:00:14]} Kf6 {[%emt 0:00:01]} 54. Be4 {[%emt 0:00:04]} Rb2 {[%emt 0:00:13]} 55. Ra3 {[%emt 0:00:27]} Rd2 {[%emt 0:00:26]} 56. Kf3 {[%emt 0:00:11]} Rb2 {[%emt 0:00:03]} 57. Ra6 {[%emt 0:00:11]} Ke5 {[%emt 0:00:05]} 58. Ra5+ {[%emt 0:00:00]} Kf6 {[%emt 0:00:01]} 59. Bd3 {[%emt 0:00:21]} Rd2 {[%emt 0:00:09]} 60. Ke3 {[%emt 0:00:01]} Rb2 {[%emt 0:00:02]} 61. f4 {[%emt 0:00:01]} gxf4+ {[%emt 0:00:02]} 62. gxf4 {[%emt 0:00:01]} Rb4 {[%emt 0:00:07]} 63. Ra6 {[%emt 0:00:03]} Ke7 {[%emt 0:00:09]} 64. Rc6 {[%emt 0:00:24]} Bd7 {[%emt 0:01:10]} 65. Rh6 {[%emt 0:00:10]} Be6 {[%emt 0:00:02]} 66. f5 {[%emt 0:00:14]} Bc4 {[%emt 0:00:18]} 67. Be4 {[%emt 0:00:03]} Kf7 {[%emt 0:00:11]} 68. Rd6 {[%emt 0:00:09]} Ke7 {[%emt 0:00:06]} 69. Rd4 {[%emt 0:00:05]} Rb3+ {[%emt 0:00:01]} 70. Kf4 {[%emt 0:00:00]} Bf7 {[%emt 0:00:05]} 71. Ra4 {[%emt 0:00:04]} Rc3 {[%emt 0:00:17]} 72. Ra7+ {[%emt 0:00:06]} Kf6 {[%emt 0:00:01]} 73. Ra6+ {[%emt 0:00:01]} Kg7 {[%emt 0:00:45]} 74. f6+ {[%emt 0:00:01]} Kh6 {[%emt 0:00:01]} 75. Ra7 {[%emt 0:00:01]} Bg6 {[%emt 0:00:01]} 76. f7 {[%emt 0:00:00]} Rc8 {[%emt 0:00:01]} 77. Ra6 {[%emt 0:00:01]} 1-0

[Event "RUS-ch Rapid Men 2018"]
[Site "Sochi"]
[Date "2018.10.05"]
[Round "4"]
[White "Yashmetov, Mikhail"]
[Black "Sychev, Klementy"]
[Result "0-1"]
[ECO "A05"]
[WhiteElo "2394"]
[BlackElo "2534"]
[Annotator "ChessBase"]
[PlyCount "76"]
[EventDate "2018.10.05"]
[EventType "swiss"]
[EventCountry "RUS"]
[SourceTitle "playchess.com"]
[Source "ChessBase"]
[SourceQuality "1"]
[TimeControl "900+10"]

1. Nf3 {[%emt 0:00:00]} Nf6 {[%emt 0:00:00]} 2. g3 {[%emt 0:00:00]} d5 {[%emt 0:00:04]} 3. Bg2 {[%emt 0:00:00]} g6 {[%emt 0:00:01]} 4. O-O {[%emt 0:00:00]} Bg7 {[%emt 0:00:01]} 5. d4 {[%emt 0:00:00]} c6 {[%emt 0:00:39]} 6. c4 {[%emt 0:00:04]} dxc4 {[%emt 0:00:02]} 7. Ne5 {[%emt 0:00:24]} Ng4 {[%emt 0:00:03]} 8. Nxc4 {[%emt 0:00:03]} Qxd4 {[%emt 0:00:09]} 9. Qc2 {[%emt 0:00:15]} O-O {[%emt 0:00:19]} 10. h3 {[%emt 0:00:07]} Ne5 {[%emt 0:00:07]} 11. Nxe5 {[%emt 0:00:04]} Qxe5 {[%emt 0:00:04]} 12. Nc3 {[%emt 0:00:04]} Na6 {[%emt 0:00:10]} 13. Bf4 {[%emt 0:00:12]} Qc5 {[%emt 0:00:36]} 14. Qb3 {[%emt 0:00:22]} Qb4 {[%emt 0:00:16]} 15. Qxb4 {[%emt 0:00:58]} Nxb4 {[%emt 0:00:02]} 16. a3 {[%emt 0:00:01]} Nc2 {[%emt 0:00:26]} 17. Rac1 {[%emt 0:00:05]} Nd4 {[%emt 0:00:02]} 18. g4 {[%emt 0:01:27]} Be6 {[%emt 0:00:05]} 19. e3 {[%emt 0:00:58]} Nb3 {[%emt 0:00:02]} 20. Rcd1 {[%emt 0:00:29]} Nc5 {[%emt 0:00:51]} 21. Ne4 {[%emt 0:01:34]} Nxe4 {[%emt 0:02:35]} 22. Bxe4 {[%emt 0:00:02]} Rfd8 {[%emt 0:01:11]} 23. b4 {[%emt 0:00:11]} Bb3 {[%emt 0:02:11]} 24. Rb1 {[%emt 0:00:49]} Ba4 {[%emt 0:01:18]} 25. Rfc1 {[%emt 0:01:37]} a6 {[%emt 0:00:53]} 26. Rc5 {[%emt 0:00:54]} Rac8 {[%emt 0:01:09]} 27. h4 {[%emt 0:01:49]} Rd1+ {[%emt 0:00:26]} 28. Rxd1 {[%emt 0:00:03]} Bxd1 {[%emt 0:00:02]} 29. g5 {[%emt 0:00:13]} Bb2 {[%emt 0:00:27]} 30. Rc4 {[%emt 0:00:51]} Rd8 {[%emt 0:00:18]} 31. Bc7 {[%emt 0:01:23]} Rd7 {[%emt 0:00:02]} 32. Bb6 {[%emt 0:00:02]} Bxa3 {[%emt 0:00:33]} 33. Bc5 {[%emt 0:00:16]} Bb2 {[%emt 0:00:24]} 34. Bg2 {[%emt 0:00:12]} Bb3 {[%emt 0:00:38]} 35. Re4 {[%emt 0:00:07]} Bd5 {[%emt 0:01:23]} 36. Rxe7 {[%emt 0:00:08]} Rxe7 {[%emt 0:00:01]} 37. Bxe7 {[%emt 0:00:03]} Bxg2 {[%emt 0:00:02]} 38. Kxg2 {[%emt 0:00:01]} Ba3 {[%emt 0:00:01]} 0-1

[Event "RUS-ch Rapid Men 2018"]
[Site "Sochi"]
[Date "2018.10.05"]
[Round "4"]
[White "Orlinkov, Maxim L."]
[Black "Lugovskoy, Maxim"]
[Result "1/2-1/2"]
[ECO "D02"]
[WhiteElo "2293"]
[BlackElo "2428"]
[Annotator "NA"]
[PlyCount "123"]
[EventDate "2018.10.05"]
[EventType "swiss"]
[EventCountry "RUS"]
[SourceTitle "playchess.com"]
[Source "ChessBase"]
[SourceQuality "1"]
[TimeControl "900+10"]

1. d4 {[%emt 0:00:00]} d5 {[%emt 0:00:00]} 2. Nf3 {[%emt 0:00:00]} e6 {[%emt 0:00:00]} 3. c4 {[%emt 0:00:01]} a6 {[%emt 0:00:00]} 4. e3 {[%emt 0:01:07]} Nf6 {[%emt 0:00:00]} 5. Nc3 {[%emt 0:00:20]} dxc4 {[%emt 0:00:02]} 6. Bxc4 {[%emt 0:00:26]} b5 {[%emt 0:00:01]} 7. Bb3 {[%emt 0:00:04]} Bb7 {[%emt 0:00:02]} 8. O-O {[%emt 0:00:11]} Nbd7 {[%emt 0:00:02]} 9. Qe2 {[%emt 0:00:19]} Bd6 {[%emt 0:00:07]} 10. Rd1 {[%emt 0:00:19]} Qe7 {[%emt 0:00:08]} 11. e4 {[%emt 0:01:23]} e5 {[%emt 0:00:22]} 12. dxe5 {[%emt 0:00:38]} Nxe5 {[%emt 0:00:04]} 13. Nd5 {[%emt 0:02:58]} Nxd5 {[%emt 0:00:10]} 14. Bxd5 {[%emt 0:00:04]} Bxd5 {[%emt 0:00:10]} 15. Rxd5 {[%emt 0:00:15]} Nxf3+ {[%emt 0:00:16]} 16. Qxf3 {[%emt 0:00:06]} O-O {[%emt 0:00:01]} 17. Bf4 {[%emt 0:00:47]} Bxf4 {[%emt 0:00:14]} 18. Qxf4 {[%emt 0:00:02]} c5 {[%emt 0:00:29]} 19. Rad1 {[%emt 0:00:32]} h6 {[%emt 0:00:09]} 20. Qe5 {[%emt 0:01:42]} Qxe5 {[%emt 0:00:09]} 21. Rxe5 {[%emt 0:00:02]} Rac8 {[%emt 0:00:02]} 22. Kf1 {[%emt 0:01:00]} c4 {[%emt 0:00:13]} 23. Rc1 {[%emt 0:01:12]} Rfd8 {[%emt 0:00:04]} 24. Ke2 {[%emt 0:00:26]} Rd6 {[%emt 0:00:31]} 25. Rc2 {[%emt 0:00:32]} Rcd8 {[%emt 0:00:05]} 26. a4 {[%emt 0:01:07]} b4 {[%emt 0:00:09]} 27. Rd5 {[%emt 0:01:38]} Rxd5 {[%emt 0:01:21]} 28. exd5 {[%emt 0:00:02]} Rxd5 {[%emt 0:00:02]} 29. Rxc4 {[%emt 0:00:05]} a5 {[%emt 0:00:01]} 30. Rc8+ {[%emt 0:00:44]} Kh7 {[%emt 0:00:01]} 31. Rb8 {[%emt 0:00:18]} Rd7 {[%emt 0:01:24]} 32. Rb5 {[%emt 0:00:13]} Ra7 {[%emt 0:00:01]} 33. f4 {[%emt 0:00:28]} Kg6 {[%emt 0:00:02]} 34. g4 {[%emt 0:00:20]} Kf6 {[%emt 0:00:06]} 35. h4 {[%emt 0:00:12]} Ke6 {[%emt 0:00:04]} 36. Ke3 {[%emt 0:00:21]} Kd6 {[%emt 0:00:18]} 37. h5 {[%emt 0:00:15]} Kc6 {[%emt 0:00:10]} 38. g5 {[%emt 0:00:16]} Re7+ {[%emt 0:00:07]} 39. Kf3 {[%emt 0:00:06]} Rd7 {[%emt 0:01:03]} 40. gxh6 {[%emt 0:00:30]} gxh6 {[%emt 0:00:02]} 41. Rxa5 {[%emt 0:00:08]} Rd2 {[%emt 0:00:01]} 42. Ra6+ {[%emt 0:00:08]} Kc5 {[%emt 0:00:16]} 43. Ke4 {[%emt 0:00:24]} Rxb2 {[%emt 0:00:04]} 44. Rxh6 {[%emt 0:00:05]} Rd2 {[%emt 0:00:35]} 45. a5 {[%emt 0:00:22]} b3 {[%emt 0:02:05]} 46. Rb6 {[%emt 0:00:17]} Rd4+ {[%emt 0:00:32]} 47. Ke3 {[%emt 0:00:08]} Rd5 {[%emt 0:01:17]} 48. h6 {[%emt 0:00:09]} Rh5 {[%emt 0:00:00]} 49. Rxb3 Rh3+ 50. Ke4 {[%emt 0:00:17]} Rxb3 {[%emt 0:00:02]} 51. Kf5 {[%emt 0:00:13]} Rg3 {[%emt 0:00:30]} 52. a6 {[%emt 0:00:15]} Kb6 {[%emt 0:00:59]} 53. a7 {[%emt 0:00:10]} Kxa7 {[%emt 0:00:42]} 54. Kf6 {[%emt 0:00:04]} Rg6+ {[%emt 0:01:34]} 55. Kxf7 {[%emt 0:00:02]} Rxh6 {[%emt 0:00:01]} 56. f5 {[%emt 0:00:05]} Kb6 {[%emt 0:00:09]} 57. f6 {[%emt 0:00:08]} Kc7 {[%emt 0:00:13]} 58. Ke7 {[%emt 0:00:19]} Rh1 {[%emt 0:01:31]} 59. f7 {[%emt 0:00:05]} Re1+ {[%emt 0:00:01]} 60. Kf6 {[%emt 0:00:02]} Rf1+ {[%emt 0:00:02]} 61. Ke7 {[%emt 0:00:02]} Rxf7+ {[%emt 0:00:40]} 62. Kxf7 1/2-1/2

[Event "RUS-ch Rapid Men 2018"]
[Site "Sochi"]
[Date "2018.10.05"]
[Round "4"]
[White "Mikhailovsky, Vladimir"]
[Black "Potapov, Pavel"]
[Result "0-1"]
[ECO "A81"]
[WhiteElo "2185"]
[BlackElo "2515"]
[Annotator "ChessBase"]
[PlyCount "82"]
[EventDate "2018.10.05"]
[EventType "swiss"]
[EventCountry "RUS"]
[SourceTitle "playchess.com"]
[Source "ChessBase"]
[SourceQuality "1"]
[TimeControl "900+10"]

1. d4 {[%emt 0:00:00]} f5 {[%emt 0:00:00]} 2. g3 {[%emt 0:00:10]} Nf6 {[%emt 0:00:00]} 3. Bg2 {[%emt 0:00:01]} g6 {[%emt 0:00:00]} 4. c4 {[%emt 0:00:12]} Bg7 {[%emt 0:00:00]} 5. Nc3 {[%emt 0:00:03]} O-O {[%emt 0:00:01]} 6. e4 {[%emt 0:00:06]} fxe4 {[%emt 0:00:23]} 7. Nxe4 {[%emt 0:00:04]} d6 {[%emt 0:00:09]} 8. Nxf6+ {[%emt 0:00:12]} Bxf6 {[%emt 0:01:49]} 9. Ne2 {[%emt 0:00:51]} Nc6 {[%emt 0:00:25]} 10. Bh6 {[%emt 0:00:38]} Bg7 {[%emt 0:00:45]} 11. Bxg7 {[%emt 0:00:24]} Kxg7 {[%emt 0:00:01]} 12. O-O {[%emt 0:00:09]} Bg4 {[%emt 0:01:16]} 13. d5 {[%emt 0:00:54]} Ne5 {[%emt 0:00:02]} 14. f4 {[%emt 0:00:09]} Nd7 {[%emt 0:00:16]} 15. Qd4+ {[%emt 0:04:00]} Nf6 {[%emt 0:00:03]} 16. Rae1 {[%emt 0:00:03]} Qd7 {[%emt 0:00:10]} 17. Qc3 {[%emt 0:01:06]} c5 {[%emt 0:03:58]} 18. dxc6 {[%emt 0:00:22]} bxc6 {[%emt 0:00:02]} 19. Nd4 {[%emt 0:00:18]} Rac8 {[%emt 0:02:05]} 20. c5 {[%emt 0:04:01]} d5 {[%emt 0:00:48]} 21. Re5 {[%emt 0:01:50]} Rf7 {[%emt 0:00:04]} 22. Rfe1 {[%emt 0:00:44]} Kg8 {[%emt 0:00:11]} 23. Qe3 {[%emt 0:00:30]} Rc7 {[%emt 0:00:27]} 24. b4 {[%emt 0:00:45]} Bf5 {[%emt 0:00:57]} 25. Nxf5 {[%emt 0:01:15]} gxf5 {[%emt 0:00:01]} 26. Qd4 {[%emt 0:00:13]} Rb7 {[%emt 0:03:14]} 27. Bh3 {[%emt 0:00:14]} Ne4 {[%emt 0:00:13]} 28. g4 {[%emt 0:00:09]} Rg7 {[%emt 0:00:28]} 29. g5 {[%emt 0:00:11]} e6 {[%emt 0:00:01]} 30. a3 {[%emt 0:00:04]} h6 {[%emt 0:00:03]} 31. Kh1 {[%emt 0:00:16]} hxg5 {[%emt 0:00:03]} 32. fxg5 {[%emt 0:00:04]} Qf7 {[%emt 0:00:29]} 33. Bg2 {[%emt 0:00:19]} Nxg5 {[%emt 0:00:07]} 34. a4 {[%emt 0:00:09]} a6 {[%emt 0:00:09]} 35. Qh4 {[%emt 0:00:11]} Qg6 {[%emt 0:00:31]} 36. Qf4 {[%emt 0:00:12]} Ne4 {[%emt 0:00:21]} 37. Bxe4 {[%emt 0:00:02]} fxe4 {[%emt 0:00:03]} 38. Qf2 {[%emt 0:00:10]} Rbf7 {[%emt 0:00:06]} 39. Qe2 {[%emt 0:00:02]} Rf3 {[%emt 0:00:14]} 40. Rf1 {[%emt 0:00:12]} Qf6 {[%emt 0:00:12]} 41. Rxf3 {[%emt 0:00:10]} exf3 {[%emt 0:00:01]} 0-1